Cogmind - Beta 14 @@@ ROGUE MODE // 2024.12.12 @ 13:34:29 Player: AshCrow Result: Destroyed by Y-54 Guardian with Flak Gun Performance ------------- Evolutions (0) 0 Regions Visited (4) 800 Robots Destroyed (23) 115 Value Destroyed (634) 634 Prototype IDs (1) 20 Alien Tech Used (0) 0 Bonus (190) 190 TOTAL SCORE: 1759 Bonus ------- Follower Combat Kills 190 Cogmind --------- Core Integrity 0/250 Matter 280/300 Energy 100/100 System Corruption 2% Temperature Cool (18) Movement Treading (160) Location -7/Recycling Parts ------- > --- POWER (1) -------- Subdweller Power Source > --- PROPULSION (2) --- Light Treads Spiked Treads > --- UTILITY (2) ------ Signal Interpreter V3-11A's Pendant > --- WEAPON (2) ------- Heavy Assault Rifle Subdweller Machine Gun > --- INVENTORY (5) ---- Subdweller Power Source Small Laser Grenade Launcher Makeshift Axe Peak State ------------ > --- POWER ------------ Subdweller Power Source > --- PROPULSION ------- Spiked Treads Advanced Treads > --- UTILITY ---------- Signal Interpreter Signal Interpreter > --- WEAPON ----------- Battle Rifle Subdweller Machine Gun > --- INVENTORY -------- Subdweller Power Source EM Pulse Gun Small Laser Grenade Launcher Makeshift Axe [Rating: 13] Favorites ----------- Power Subdweller Power Source Engine Subdweller Power Source Power Core Light Nuclear Core Propulsion Light Treads Treads Light Treads Utility Signal Interpreter Device V3-11A's Pendant Storage Small Storage Unit Processor Signal Interpreter Weapon Light Assault Rifle Energy Gun Small Laser Ballistic Gun Light Assault Rifle Ballistic Cannon Light Cannon Launcher Grenade Launcher Build | -11 -10 -10 -10 -7 ------- Run | Yrd Mat Min Sub Rec Slots Evolved . | . . . . . Power . | . . . . . Propulsion . | . . . . . Utility . | . . . . . Weapon . | . . . . . Parts Attached 43 | 6 15 10 12 . Power 5 | 1 1 1 2 . Engine 4 | 1 1 . 2 . Core 1 | . . 1 . . Reactor . | . . . . . Propulsion 8 | 2 2 2 2 . Treads 8 | 2 2 2 2 . Leg . | . . . . . Wheel . | . . . . . Hover . | . . . . . Flight . | . . . . . Utility 12 | 1 8 1 2 . Device 1 | . . . 1 . Storage 9 | 1 7 1 . . Processor 2 | . 1 . 1 . Hackware . | . . . . . Protection . | . . . . . Artifact . | . . . . . Weapon 18 | 2 4 6 6 . Energy Gun 2 | . . 1 1 . Energy Cannon . | . . . . . Ballistic Gun 13 | 2 4 3 4 . Ballistic Cannon 2 | . . 1 1 . Launcher 1 | . . 1 . . Special Weapon . | . . . . . Impact Weapon . | . . . . . Slashing Weapon . | . . . . . Piercing Weapon . | . . . . . Special Melee Weapon . | . . . . . Unidentified Prototypes 1 | . . . 1 . Parts Lost 7 | . 1 3 3 . Power 1 | . . 1 . . Propulsion 4 | . 1 1 2 . Utility . | . . . . . Weapon 2 | . . 1 1 . Highest Loss Streak 1 | . 1 1 1 . To Critical Strikes 1 | . . . 1 . Average Slot Usage (%) 83 | . 89 70 91 100 Engine 8 | . 13 . 12 14 Core 1 | . . 3 . . Treads 22 | . 21 21 24 28 Device 2 | . . . 5 14 Storage 5 | . 17 2 . . Processor 13 | . 7 14 18 14 Ballistic Gun 21 | . 27 14 24 28 Ballistic Cannon 5 | . . 11 3 . Peak Build Rating 13 | 6 7 9 13 13 Average Rating 8 | 4 6 8 11 13 On Entrance 6 | . 6 6 9 13 Naked Turns . | . . . . . Heaviest Build 168 | 13 168 15 13 13 Greatest Support 42 | 40 40 42 42 40 Greatest Overweight (x) 4 | . 4 4 . . Average Overweight (x) . | . . . . . Largest Inventory Capacity 25 | 8 25 15 5 5 Average Capacity 6 | 6 8 5 5 5 Most Carried 8 | 4 8 8 5 4 Average Carried 5 | 1 7 5 4 4 Final Capacity 8 | 8 8 5 5 5 Final Carried 8 | 4 8 5 4 4 Class Distribution -------------------- 82% | Mutant 17% | Scavenger-Mutant Dominant Class ---------------- Mutant | -10/Materials Mutant | -10/Mines Mutant | -10/Subcaves Scavenger-Mutant | -7/Recycling Resources | -11 -10 -10 -10 -7 ----------- Run | Yrd Mat Min Sub Rec Matter Collected 1095 | 260 205 376 254 . Remotely . | . . . . . Salvage Created 546 | . 186 196 145 19 Parts 38 | . 8 12 17 1 Haulers Intercepted . | . . . . . Recyclers Shooed . | . . . . . Parts Field Recycled . | . . . . . Retrieved Matter . | . . . . . Parts Self-Destructed 17 | . . . 17 . Prevented . | . . . . . Kills | -11 -10 -10 -10 -7 ------- Run | Yrd Mat Min Sub Rec Combat Hostiles Destroyed 23 | . 7 10 5 1 Guns 16 | . 7 4 4 1 Cannons 5 | . . 4 1 . AOE 2 | . . 2 . . Classes Destroyed 4 | . 2 . 2 . Swarmer 10 | . 5 3 1 1 Grunt 10 | . 2 7 1 . Sentry 1 | . . . 1 . Subdweller 2 | . . . 2 . Best Kill Streak 3 | . 3 2 2 1 Combat Bots Only 3 | . 3 2 2 1 Max Kills in Single Turn 2 | . 1 2 1 1 Gunslinging . | . . . . . Exploded 2 | . . 2 . . Melee . | . . . . . Uniques/NPCs Destroyed . | . . . . . Combat | -11 -10 -10 -10 -7 -------- Run | Yrd Mat Min Sub Rec Hostile Shots Fired 208 | . 53 88 45 22 Missed 61 | . 12 27 15 7 Damage Taken 1793 | . 364 809 477 143 Core 252 | . 47 127 40 38 Absorbed by Shields . | . . . . . Core Remaining (%) 100 | 100 . . . . Volleys Fired 101 | . 32 46 20 3 Largest 2 | . 2 2 2 2 Hottest 75 | . 40 75 65 53 Shots Fired 198 | . 64 89 39 6 Gun 154 | . 64 58 26 6 Cannon 41 | . . 28 13 . Launcher 3 | . . 3 . . Special . | . . . . . Kinetic 189 | . 64 80 39 6 Thermal 6 | . . 6 . . Explosive 3 | . . 3 . . Electromagnetic . | . . . . . Robot Hit Streak 12 | . 12 11 12 3 Robot Miss Streak 3 | . 3 3 3 1 Penetration Max . | . . . . . Secondary Targets 4 | . 4 . . . Max Gunslinging Chain 1 | . 1 . . . Shots Hit Robots 124 | . 37 54 29 4 Core Hits 46 | . 14 20 10 2 Critical Kills . | . . . . . Critical Parts Destroyed . | . . . . . Critical Strikes 1 | . . . 1 . Blast 1 | . . . 1 . Melee Attacks . | . . . . . Impact . | . . . . . Slashing . | . . . . . Piercing . | . . . . . Sneak Attacks . | . . . . . Combat Hostiles . | . . . . . Follow-up Attacks . | . . . . . Damage Inflicted 1902 | . 422 919 484 77 Guns 1092 | . 412 276 327 77 Cannons 580 | . . 423 157 . Explosions 211 | . . 211 . . Melee . | . . . . . Ramming 19 | . 10 9 . . Kinetic 1614 | . 412 641 484 77 Thermal 58 | . . 58 . . Explosive 211 | . . 211 . . Electromagnetic . | . . . . . Impact . | . . . . . Slashing . | . . . . . Piercing . | . . . . . Highest Corruption 2 | . . 2 2 2 Average Corruption 2 | . . 2 2 2 Corruption Purged . | . . . . . Corruption Blocked . | . . . . . Effects 28 | . . 14 14 . Message Errors 9 | . . 3 6 . Matter Fused 8 | . . 4 4 . Heat Flow Errors 3 | . . 1 2 . Energy Discharges 2 | . . 2 . . Data Loss (minor) 5 | . . 3 2 . Data Loss (major) 1 | . . 1 . . Overload Shots . | . . . . . Overflow Damage . | . . . . . Projectiles . | . . . . . Explosions . | . . . . . Melee . | . . . . . Knockbacks 4 | . . 2 2 . Impact . | . . . . . Kinetic 4 | . . 2 2 . Secondary . | . . . . . Self-Inflicted Damage 63 | . 2 61 . . Shots 3 | . . 3 . . Rammed 5 | . 2 3 . . Targets Rammed 5 | . 2 3 . . Kicked . | . . . . . Crushed . | . . . . . Highest Temperature 164 | . 12 120 164 10 Average Temperature 33 | . 7 31 81 6 Received Heat Transfer 636 | . 57 399 144 36 Siege Activations . | . . . . . Robots Corrupted . | . . . . . Combat Hostiles . | . . . . . Parts Fried . | . . . . . Impact Corruptions . | . . . . . Robots Melted . | . . . . . Combat Hostiles . | . . . . . Parts Melted 1 | . . . 1 . Heat Transferred 125 | . . 125 . . Parts Sabotaged . | . . . . . Parts Stolen . | . . . . . Parts Stripped . | . . . . . Power Chain Reactions . | . . . . . Alert | -11 -10 -10 -10 -7 ------- Run | Yrd Mat Min Sub Rec Peak Influence 156 | . 145 156 . 42 Initial 8 | . . . . 8 Average 33 | . 29 39 . 18 Maximum Alert Level . | . . . . . Low Security (%) 100 | 100 100 100 . 100 Level 1 . | . . . . . Level 2 . | . . . . . Level 3 . | . . . . . Level 4 . | . . . . . Level 5 . | . . . . . High Security . | . . . . . Max Security . | . . . . . Squads Dispatched 1 | . . 1 . . Investigation 1 | . . 1 . . Extermination . | . . . . . Reinforcement . | . . . . . Assault . | . . . . . Garrison . | . . . . . Intercept . | . . . . . Searches Triggered . | . . . . . Construction Impeded . | . . . . . Haulers Reinforced . | . . . . . Active Scanning Responses . | . . . . . Cargo Convoy Interrupts . | . . . . . Stealth | -11 -10 -10 -10 -7 --------- Run | Yrd Mat Min Sub Rec Distress Signals 1 | . 1 . . . Communications Jammed . | . . . . . Distress Signals . | . . . . . Times Spotted 47 | . 16 14 12 5 Peak Tracking Total 5 | . 5 3 3 5 Tactical Retreats 3 | . 1 1 1 . Traps | -11 -10 -10 -10 -7 ------- Run | Yrd Mat Min Sub Rec Traps Triggered 3 | . 2 . 1 . Indirectly . | . . . . . Trap Hack Attempts . | . . . . . Triggered . | . . . . . Disarmed . | . . . . . Reprogrammed . | . . . . . Reused . | . . . . . Traps Extracted . | . . . . . Installed . | . . . . . Triggered . | . . . . . Machines | -11 -10 -10 -10 -7 ---------- Run | Yrd Mat Min Sub Rec Machines Disabled 3 | . . . 3 . Max in Single Turn . | . . . . . Machines Repaired . | . . . . . Machines Dismantled . | . . . . . Machines Sabotaged . | . . . . . Overloaded Fab Kills . | . . . . . Hacking | -11 -10 -10 -10 -7 --------- Run | Yrd Mat Min Sub Rec Machines Accessed 1 | . . 1 . . Terminals . | . . . . . Fabricators . | . . . . . Repair Stations . | . . . . . Recycling Units . | . . . . . Scanalyzers . | . . . . . Garrison Access . | . . . . . Total Hacks 1 | . . 1 . . Successful 1 | . . 1 . . Failed . | . . . . . Catastrophic . | . . . . . Database Lockouts . | . . . . . Manual . | . . . . . Terminals . | . . . . . Fabricators . | . . . . . Repair Stations . | . . . . . Recycling Units . | . . . . . Scanalyzers . | . . . . . Garrison Access . | . . . . . Terminal Hacks 1 | . . 1 . . Open Door 1 | . . 1 . . Fabricator Hacks . | . . . . . Repair Station Hacks . | . . . . . Recycling Unit Hacks . | . . . . . Scanalyzer . | . . . . . Garrison Access Hacks . | . . . . . Unauthorized Hacks . | . . . . . Terminals . | . . . . . Fabricators . | . . . . . Repair Stations . | . . . . . Recycling Units . | . . . . . Scanalyzers . | . . . . . Garrison Access . | . . . . . Data Cores Recovered . | . . . . . Used . | . . . . . Hacking Detections . | . . . . . Full Trace Events . | . . . . . Feedback Events . | . . . . . Feedback Blocked . | . . . . . Robot Schematics Acquired . | . . . . . Robots Built . | . . . . . Authchips . | . . . . . Time . | . . . . . Total Robot Build Rating . | . . . . . Part Schematics Acquired . | . . . . . Parts Built . | . . . . . Authchips . | . . . . . Time . | . . . . . Total Part Build Rating . | . . . . . Parts Repaired . | . . . . . Time . | . . . . . Parts Recycled . | . . . . . Recycled Matter . | . . . . . Retrieved Matter . | . . . . . Retrieved Components . | . . . . . Parts Scanalyzed . | . . . . . Part Schematics Acquired . | . . . . . Parts Damaged . | . . . . . Bothacking | -11 -10 -10 -10 -7 ------------ Run | Yrd Mat Min Sub Rec Used RIF Installer . | . . . . . Robots Hacked . | . . . . . Non-combat . | . . . . . Combat . | . . . . . Robot Hacks Applied . | . . . . . Relay Couplers Released . | . . . . . Fabnet Peak Effective % . | . . . . . Robots Rewired . | . . . . . Allies Hacked . | . . . . . Hacks Repelled . | . . . . . Allies | -11 -10 -10 -10 -7 -------- Run | Yrd Mat Min Sub Rec Total Allies 7 | . . 3 4 . Largest Group 4 | . . 3 4 3 Highest-Rated Group 76 | . . 40 76 57 Highest-Rated Ally 19 | . . 16 19 19 Total Orders . | . . . . . Ally Attacks 34 | . . . 25 9 Total Damage 595 | . . . 436 159 Kills 8 | . . . 7 1 Allies Corrupted . | . . . . . Allies Melted . | . . . . . Intel | -11 -10 -10 -10 -7 ------- Run | Yrd Mat Min Sub Rec Robot Analysis Total . | . . . . . Derelict Logs Recovered 2 | . . 1 1 . Drone Launches . | . . . . . Drone Recoveries . | . . . . . Exploration | -11 -10 -10 -10 -7 ------------- Run | Yrd Mat Min Sub Rec Turns Passed 4754 | 86 1360 1656 1636 16 Spaces Moved 2155 | 48 753 433 916 5 Core 171 | 2 5 164 . . Treads 1984 | 46 748 269 916 5 Legs . | . . . . . Wheels . | . . . . . Hover . | . . . . . Flight . | . . . . . Fastest Speed 50 | 50 150 100 145 160 Average Speed 158 | 155 161 158 155 160 Slowest Speed 480 | 160 480 250 160 160 Overloaded Moves . | . . . . . Propulsion Burnouts . | . . . . . Robots Hopped . | . . . . . Cave-ins Triggered . | . . . . . Exploration Rate (%) 46 | 4 96 77 53 4 Regions Visited 4 Branch Regions 3 Pre-discovered Areas 1 | . . . 1 . Known Exits Taken 3 | . 1 1 1 . Unknown Exits Taken 1 | 1 . . . . Scrap Searched 1 | . . 1 . . Spaces Dug . | . . . . . Terrain Destroyed 34 | . . 34 . . Melee . | . . . . . Projectile . | . . . . . AOE 34 | . . 34 . . Terrain Rammed . | . . . . . Walls Destroyed . | . . . . . Machines Disabled . | . . . . . Actions | -11 -10 -10 -10 -7 --------- Run | Yrd Mat Min Sub Rec Total 3312 | 57 838 1320 1089 8 Wait 969 | . 16 823 130 . Move 2151 | 47 752 432 915 5 Hop . | . . . . . Pick Up 16 | 4 8 1 3 . Fast Attach 26 | 6 12 3 5 . Attach 1 | . 1 . . . Detach 4 | . 4 . . . Swap 16 | . 2 7 7 . Drop 21 | . 9 5 7 . Fire 101 | . 32 46 20 3 Melee . | . . . . . Ram 3 | . 1 2 . . Kick . | . . . . . Crush 2 | . 1 1 . . Escape Stasis . | . . . . . Rewire 2 | . . . 2 . Trap . | . . . . . Miscellaneous . | . . . . . Route ------- -11/Scrapyard -10/Materials (discovered 5 exits: *Mat x3 / *Min x2) -10/Mines (discovered 3 exits: *Mat x2 / *Sub) -10/Subcaves (discovered 2 exits: *Mat / *Rec) -7/Recycling History --------- Turn | Location | Event 12 | -11/Scrapyard | Discovered new exit (range 14) 87 | -11/Scrapyard | Entered Materials 305 | -10/Materials | Build established: Mutant 354 | -10/Materials | Discovered new exit (range 7) 559 | -10/Materials | Discovered new exit (range 7) 676 | -10/Materials | Discovered new exit (range 13) 705 | -10/Materials | Identified exit to Materials 760 | -10/Materials | Discovered new exit (range 5) 767 | -10/Materials | Identified exit to Mines 1041 | -10/Materials | Discovered exit to Materials (range 8) 1447 | -10/Materials | Entered Mines 1542 | -10/Mines | Learned Materials emergency access door positions 1702 | -10/Mines | Found a hidden stash of uninstalled traps 1873 | -10/Mines | Discovered exit to Materials (range 7) 1882 | -10/Mines | Discovered exit to Materials (range 4) 1894 | -10/Mines | Met a Derelict shopkeep closing up shop 2150 | -10/Mines | Core integrity fell below 50% 2217 | -10/Mines | Assisted by bots powering up and referring to "LRC-V3" 3095 | -10/Mines | Discovered new exit (range 6) 3101 | -10/Mines | Identified exit to Subcaves 3103 | -10/Mines | Entered Subcaves 3103 | -10/Subcaves | Accompanied by 3 allies 3107 | -10/Subcaves | Learned Materials trap positions 3245 | -10/Subcaves | Ambushed by Subdwellers from Twisted Machinery 3366 | -10/Subcaves | Learned location of Zion (-7) 3366 | -10/Subcaves | Met a Zionite searching for "candidates" 3919 | -10/Subcaves | Core integrity fell below 20% 3970 | -10/Subcaves | Discovered new exit (range 8) 3980 | -10/Subcaves | Identified exit to Materials 4041 | -10/Subcaves | Visited triangular shrine 4067 | -10/Subcaves | Found Prototype Device 4078 | -10/Subcaves | Identified V3-11A's Pendant 4083 | -10/Subcaves | Befriended Subdweller 4128 | -10/Subcaves | Befriended Subdweller 4128 | -10/Subcaves | Befriended Subdweller 4183 | -10/Subcaves | Befriended Subdweller 4232 | -10/Subcaves | Build established: Scavenger-Mutant 4259 | -10/Subcaves | Shifting Twisted Machinery released Sub. Power Source 4262 | -10/Subcaves | Shifting Twisted Machinery released Sub. Power Source 4691 | -10/Subcaves | Shifting Twisted Machinery released Piercing Trap 4695 | -10/Subcaves | Discovered new exit (range 15) 4710 | -10/Subcaves | Shifting Twisted Machinery released Sub. Beam Cannon 4737 | -10/Subcaves | Identified exit to Recycling 4739 | -10/Subcaves | Entered Recycling 4739 | -7/Recycling | Accompanied by 3 allies 4755 | -7/Recycling | Destroyed by Y-54 Guardian with Flak Gun Last Messages --------------- 04707_ Attempting to rewire 0L-J5O(R). 04707_ 0L-J5O(R) is broken beyond repair. Sub. Beam Cannon falls loose from the Twisted Machinery. 04722_ System corrupted: Matter fused (-7). 04732_ Acquired 7 matter. 04737_ EXIT=IDENTIFIED: RECYCLING LOCATION=RECYCLING GOAL=ESCAPE 04745_ Y-54 Guardian springs to life. 04747_ Destroyed VTOL Module. 04748_ G-47 Trooper springs to life. 04748_ P-60 Hacker springs to life. 04749_ 3F-RI3(R) destroyed. 04749_ V3-11A: "I hear you, but what does it all mean?!" 04749_ V3-11A destroyed. 04750_ Y-54 Guardian destroyed. 04750_ S-27 Virus destroyed. 04755_ 9R-MDH(R) destroyed. Map ----- +----------------------------------------------------+ | | | ?????????????????????????????????????????????????? | | ?????????????????????????????????????????????????? | | ?????????????????????????????????????????????????? | | ?????????????????????????????????????????????????? | | ?????????????????????????????????????????????????? | | ?????????????????????????????????????????????????? | | ?????????????????????????????????????????????????? | | ?????????????????????????????????????????????????? | | ?????????????????????????????????????????????????? | | ?????????????????????????????????????????????????? | | ?????????????????????????????????????????????????? | | ?????????????????????????????????????????????????? | | ???????????????????????##########????????????????? | | ???????????????????????#!% t #????????????????? | | ???????????????????????? lY% #????????????????? | | ????????????????????????! k #????????????????? | | ???????????????????????? =[b ?????????????????? | | ???????????????????????? = ??????????????????? | | ????????????????????????? / i???????????????????? | | ????????????????????????? s ???????????????????? | | ????????????????????????? ! g????????????????????? | | ????????????????????????? g ?????????????????????? | | ?????????????+#;##########Y######????????????????? | | ?????????? &*%* #????????????????? | | ?????????? * !%!@ #????????????????? | | ?????????? %[]&%* #????????????????? | | ????????????# ##### ######+######????????????????? | | ???????????????????????? ??????????????????????? | | ?????????????????????? ???????????????????????? | | ????????????????????? ????????????????????????? | | ????????????????????# ?????????????????????????? | | ????????????????????####?????????????????????????? | | ?????????????????????????????????????????????????? | | ?????????????????????????????????????????????????? | | ?????????????????????????????????????????????????? | | ?????????????????????????????????????????????????? | | ?????????????????????????????????????????????????? | | ?????????????????????????????????????????????????? | | ?????????????????????????????????????????????????? | | ?????????????????????????????????????????????????? | | ?????????????????????????????????????????????????? | | ?????????????????????????????????????????????????? | | ?????????????????????????????????????????????????? | | ?????????????????????????????????????????????????? | | ?????????????????????????????????????????????????? | | ?????????????????????????????????????????????????? | | ?????????????????????????????????????????????????? | | ?????????????????????????????????????????????????? | | ?????????????????????????????????????????????????? | +----------------------------------------------------+ Best States ------------- Heat Dissipation 25 Energy Generation 15 Energy Capacity 400 Matter Stores 300 Matter Capacity 300 Sight Range 16 Terrain Scan Density 10 Evasion (%) 40 Recoil Reduction 2 Item Schematics ----------------- None Robot Schematics ------------------ None Fabricated ------------ Nothing Alien Tech Used ----------------- None Achievements -------------- Tank Challenges ------------ None Game ------ Seed BeamInsulationSource Manual? 0 Play Time 00:17:48 Cumulative 23.4 hours Start 2024.12.12 @ 13:14:40 End 2024.12.12 @ 13:34:29 Sessions 1 Manual Loads 0 Difficulty Rogue Special Mode None Game No. 33 Rogue 33 Adventurer 0 Explorer 0 Win Type - Total 0 Types 0/0/0/0/0/0/0/0/0 Lore% 22 Gallery% 23 Achievement% 21 Wizard Run 0 Options --------- Layout 1 ASCII 0 Keyboard 1 Movement Numpad Keybinds 0 Fullscreen 1 Font 24/Terminus Map View 50x35 Zoom Use 0% Tactical HUD 1 Map Filters NONE Filters NONE Steam 1 RUN: 920b876a-54d5-4815-bea2-cf8375593a75